Cogmind - Beta 9.3 *** ADVENTURER MODE // 2020.01.02 @ 16:23:20 Player: BW-032 Result: Destroyed by D-53 Grenadier with Mini Grenade Launcher Performance ------------- Evolutions (0) 0 Regions Visited (2) 400 Robots Destroyed (22) 110 Value Destroyed (456) 456 Prototype IDs (1) 20 Alien Tech Used (0) 0 Bonus (0) 0 TOTAL SCORE: 986 Bonus ------- None Cogmind --------- Core Integrity 0/250 Matter 160/300 Energy 67/100 System Corruption 0% Temperature Cool (0) Movement Core (50) Location -10/Mines Parts ------- > --- POWER (1) -------- (None) > --- PROPULSION (2) --- (None) > --- UTILITY (2) ------ Utility Shielding > --- WEAPON (2) ------- Mini Grenade Launcher > --- INVENTORY (4) ---- Structural Scanner Datajack Peak State ------------ > --- POWER ------------ (None) > --- PROPULSION ------- Improved Hover Unit Improved Hover Unit > --- UTILITY ---------- Experimental Sensor Array Utility Shielding > --- WEAPON ----------- Grenade Launcher Mini Grenade Launcher > --- INVENTORY -------- Structural Scanner Medium Laser Small Laser Datajack [Rating: 14] Favorites ----------- Power Light Nuclear Core Engine Light Ion Engine Power Core Light Nuclear Core Propulsion Improved Hover Unit Wheel Wheel Hover Unit Improved Hover Unit Utility Utility Shielding Device Structural Scanner Storage High-capacity Battery Protection Utility Shielding Weapon Grenade Launcher Energy Gun Small Laser Launcher Grenade Launcher Build | -11 -10 -10 ------- Run | Scr Mat Min Slots Evolved . | . . . Power . | . . . Propulsion . | . . . Utility . | . . . Weapon . | . . . Parts Attached 16 | 4 6 6 Power 2 | 1 1 . Engine 1 | 1 . . Core 1 | . 1 . Reactor . | . . . Propulsion 4 | 1 2 1 Treads . | . . . Leg . | . . . Wheel 1 | 1 . . Hover 3 | . 2 1 Flight . | . . . Utility 4 | . 1 3 Device 2 | . . 2 Storage 1 | . . 1 Processor . | . . . Hackware . | . . . Protection 1 | . 1 . Artifact . | . . . Weapon 6 | 2 2 2 Energy Gun 4 | 2 . 2 Energy Cannon . | . . . Ballistic Gun . | . . . Ballistic Cannon . | . . . Launcher 2 | . 2 . Special Weapon . | . . . Impact Weapon . | . . . Slashing Weapon . | . . . Piercing Weapon . | . . . Special Melee Weapon . | . . . Unidentified Prototypes 1 | . . 1 Parts Lost 8 | . . 8 Power 1 | . . 1 Propulsion 3 | . . 3 Utility 1 | . . 1 Weapon 3 | . . 3 Highest Loss Streak 6 | . . 6 Average Slot Usage (%) 81 | . 72 90 Engine 4 | . 8 . Core 8 | . 5 11 Wheel 1 | . 3 . Hover 22 | . 20 25 Device 3 | . . 8 Storage 1 | . . 2 Protection 9 | . 4 14 Energy Gun 5 | . 9 . Launcher 22 | . 18 27 Naked Turns . | . . . Heaviest Build 14 | 6 10 14 Greatest Support 16 | 10 16 16 Greatest Overweight (x) . | . . . Average Overweight (x) . | . . . Largest Inventory Capacity 4 | 4 4 4 Average Capacity 4 | 4 4 4 Most Carried 4 | 1 4 4 Average Carried 3 | . 3 3 Final Capacity 4 | 4 4 4 Final Carried 4 | 1 4 2 Class Distribution -------------------- 100% | Mutant Dominant Class ---------------- Mutant | -10/Materials Mutant | -10/Mines Resources | -11 -10 -10 ----------- Run | Scr Mat Min Matter Collected 470 | 201 106 163 Remotely . | . . . Salvage Created 339 | . 265 74 Parts 22 | . 16 6 Haulers Intercepted 1 | . 1 . Recyclers Shooed . | . . . Parts Field Recycled . | . . . Retrieved Matter . | . . . Parts Self-Destructed . | . . . Prevented . | . . . Kills | -11 -10 -10 ------- Run | Scr Mat Min Combat Hostiles Destroyed 17 | . 6 11 AOE 17 | . 6 11 Classes Destroyed 9 | . 4 5 Worker 1 | . . 1 Tunneler 1 | . . 1 Hauler 1 | . 1 . Recycler 1 | . 1 . Watcher 1 | . 1 . Swarmer 3 | . . 3 Grunt 8 | . 6 2 Demolisher 1 | . . 1 Assembled 5 | . . 5 Best Kill Streak 9 | . 9 5 Combat Bots Only 6 | . 6 5 Max Kills in Single Turn 5 | . 5 5 Gunslinging . | . . . Exploded 5 | . 2 5 Melee . | . . . Uniques/NPCs Destroyed . | . . . Combat | -11 -10 -10 -------- Run | Scr Mat Min Damage Taken 617 | . 49 568 Core 257 | . 29 228 Absorbed by Shields . | . . . Core Remaining (%) 100 | 100 . . Volleys Fired 21 | . 4 17 Largest 2 | . 2 2 Hottest 80 | . 60 80 Shots Fired 31 | . 8 23 Gun 2 | . . 2 Cannon . | . . . Launcher 29 | . 8 21 Special . | . . . Kinetic . | . . . Thermal 2 | . . 2 Explosive 29 | . 8 21 Electromagnetic . | . . . Robot Hit Streak 11 | . 3 11 Robot Miss Streak 1 | . 1 1 Penetration Max . | . . . Secondary Targets . | . . . Shots Hit Robots 18 | . 3 15 Core Hits 44 | . 14 30 Critical Hits . | . . . Critical Kills . | . . . Critical Parts Destroyed . | . . . Melee Attacks . | . . . Impact . | . . . Slashing . | . . . Piercing . | . . . Sneak Attacks . | . . . Combat Hostiles . | . . . Follow-up Attacks . | . . . Damage Inflicted 1679 | . 639 1040 Guns 12 | . . 12 Cannons . | . . . Explosions 1667 | . 639 1028 Melee . | . . . Ramming . | . . . Kinetic . | . . . Thermal 12 | . . 12 Explosive 1667 | . 639 1028 Electromagnetic . | . . . Impact . | . . . Slashing . | . . . Piercing . | . . . Highest Corruption . | . . . Average Corruption . | . . . Corruption Purged . | . . . Overload Shots . | . . . Overflow Damage 24 | . . 24 Projectiles . | . . . Explosions 24 | . . 24 Melee . | . . . Knockbacks . | . . . Impact . | . . . Kinetic . | . . . Secondary . | . . . Self-Inflicted Damage 58 | . 12 46 Shots 4 | . 1 3 Rammed . | . . . Targets Rammed . | . . . Kicked . | . . . Crushed . | . . . Highest Temperature 31 | . 21 31 Average Temperature 12 | . 10 13 Received Heat Transfer 60 | . 27 33 Siege Activations . | . . . Robots Corrupted . | . . . Combat Hostiles . | . . . Parts Fried . | . . . Impact Corruptions . | . . . Robots Melted . | . . . Combat Hostiles . | . . . Parts Melted . | . . . Heat Transferred 37 | . . 37 Parts Sabotaged . | . . . Parts Stolen . | . . . Parts Stripped . | . . . Power Chain Reactions . | . . . Missiles Intercepted . | . . . Alert | -11 -10 -10 ------- Run | Scr Mat Min Peak Influence 260 | . 260 257 Average Influence 145 | . 94 224 Maximum Alert Level 1 | . 1 1 Low Security (%) 46 | 100 71 11 Level 1 53 | . 28 88 Level 2 . | . . . Level 3 . | . . . Level 4 . | . . . Level 5 . | . . . High Security . | . . . Max Security . | . . . Squads Dispatched 2 | . 2 . Investigation 2 | . 2 . Extermination . | . . . Reinforcement . | . . . Assault . | . . . Garrison . | . . . Intercept . | . . . Construction Impeded . | . . . Haulers Reinforced . | . . . Stealth | -11 -10 -10 --------- Run | Scr Mat Min Distress Signals 1 | . 1 . Communications Jammed . | . . . Distress Signals . | . . . Times Spotted 26 | . 12 14 Peak Tracking Total 9 | . 4 9 Tactical Retreats . | . . . Traps | -11 -10 -10 ------- Run | Scr Mat Min Traps Triggered . | . . . Indirectly . | . . . Trap Hack Attempts . | . . . Triggered . | . . . Disarmed . | . . . Reprogrammed . | . . . Reused . | . . . Traps Extracted . | . . . Installed . | . . . Triggered . | . . . Machines | -11 -10 -10 ---------- Run | Scr Mat Min Machines Disabled 3 | . . 3 Max in Single Turn 1 | . . 1 Machines Sabotaged . | . . . Garrisons Compromised . | . . . Overloaded Fab Kills . | . . . Fab Network Shutdowns . | . . . Hacking | -11 -10 -10 --------- Run | Scr Mat Min Machines Accessed 5 | . 5 . Terminals 3 | . 3 . Fabricators . | . . . Repair Stations . | . . . Recycling Units 2 | . 2 . Scanalyzers . | . . . Garrison Access . | . . . Total Hacks 16 | . 16 . Successful 14 | . 14 . Failed 2 | . 2 . Catastrophic . | . . . Database Lockouts . | . . . Manual 14 | . 14 . Terminals 12 | . 12 . Fabricators . | . . . Repair Stations . | . . . Recycling Units 4 | . 4 . Scanalyzers . | . . . Garrison Access . | . . . Terminal Hacks 1 | . 1 . Robot Analysis 1 | . 1 . Fabricator Hacks . | . . . Repair Station Hacks . | . . . Recycling Unit Hacks 2 | . 2 . Report Inventory 2 | . 2 . Scanalyzer . | . . . Garrison Access Hacks . | . . . Unauthorized Hacks 24 | . 24 . Terminals 9 | . 9 . Track 2 | . 2 . Assimilate 2 | . 2 . Botnet 3 | . 3 . Operators 2 | . 2 . Fabricators . | . . . Repair Stations . | . . . Recycling Units 2 | . 2 . Tunnel 2 | . 2 . Scanalyzers . | . . . Garrison Access . | . . . Data Cores Recovered . | . . . Used . | . . . Hacking Detections 4 | . 4 . Full Trace Events . | . . . Feedback Events . | . . . Feedback Blocked . | . . . Robot Schematics Acquired . | . . . Robots Built . | . . . Matter . | . . . Time . | . . . Total Robot Build Rating . | . . . Part Schematics Acquired . | . . . Parts Built . | . . . Matter . | . . . Time . | . . . Total Part Build Rating . | . . . Parts Repaired . | . . . Time . | . . . Parts Recycled . | . . . Recycled Matter . | . . . Retrieved Matter . | . . . Retrieved Components . | . . . Parts Scanalyzed . | . . . Part Schematics Acquired . | . . . Parts Damaged . | . . . Bothacking | -11 -10 -10 ------------ Run | Scr Mat Min Used RIF Installer . | . . . Robots Hacked . | . . . Non-combat . | . . . Combat . | . . . Robot Hacks Applied . | . . . Relay Couplers Released . | . . . Robots Rewired . | . . . Allies Hacked . | . . . Hacks Repelled . | . . . Allies | -11 -10 -10 -------- Run | Scr Mat Min Total Allies . | . . . Largest Group . | . . . Highest-Rated Group . | . . . Highest-Rated Ally . | . . . Total Orders . | . . . Ally Attacks . | . . . Total Damage . | . . . Kills . | . . . Allies Corrupted . | . . . Allies Melted . | . . . Intel | -11 -10 -10 ------- Run | Scr Mat Min Robot Analysis Total 1 | . 1 . Derelict Logs Recovered . | . . . Drone Launches . | . . . Drone Recoveries . | . . . Exploration | -11 -10 -10 ------------- Run | Scr Mat Min Turns Passed 537 | 38 259 240 Spaces Moved 743 | 41 373 329 Core 5 | 5 . . Treads . | . . . Legs . | . . . Wheels 111 | 36 75 . Hover 627 | . 298 329 Flight . | . . . Fastest Speed 50 | 50 56 56 Average Speed 59 | 76 60 56 Slowest Speed 80 | 80 80 60 Overloaded Moves . | . . . Propulsion Burnouts . | . . . Robots Hopped . | . . . Cave-ins Triggered . | . . . Exploration Rate (%) 40 | 4 54 64 Regions Visited 2 Branch Regions 1 Pre-discovered Areas 2 | . 2 . Known Exits Taken . | . . . Unknown Exits Taken 2 | 1 1 . Scrap Searched 1 | . . 1 Spaces Dug . | . . . Terrain Destroyed 172 | . 63 109 Melee . | . . . Projectile . | . . . AOE 172 | . 63 109 Actions | -11 -10 -10 --------- Run | Scr Mat Min Total 800 | 45 395 360 Wait 12 | . 6 6 Move 741 | 40 372 329 Hop . | . . . Pick Up 5 | 1 4 . Fast Attach 11 | 4 4 3 Attach 3 | . . 3 Detach 1 | . . 1 Swap 2 | . 2 . Drop 4 | . 3 1 Fire 21 | . 4 17 Melee . | . . . Ram . | . . . Kick . | . . . Crush . | . . . Escape Stasis . | . . . Rewire . | . . . Trap . | . . . Miscellaneous . | . . . Route ------- -11/Scrapyard -10/Materials -10/Mines (discovered 1 exit: [*Mat]) History --------- Turn | Location | Event 3 | -11/Scrapyard | Discovered new exit (range 16) 39 | -11/Scrapyard | Entered Materials 141 | -10/Materials | Discovered new exit (range 13) 298 | -10/Materials | Entered Mines 300 | -10/Mines | Build established: Mutant 400 | -10/Mines | Discovered new exit (range 11) 421 | -10/Mines | Met a Derelict bent on vengeance 466 | -10/Mines | Assembled infested the area 516 | -10/Mines | Found a damaged Exp. Sensor Array with a note attached 524 | -10/Mines | Found Prototype Device 524 | -10/Mines | Identified Exp. Sensor Array 534 | -10/Mines | Core integrity fell below 50% 537 | -10/Mines | Core integrity fell below 20% 538 | -10/Mines | Destroyed by D-53 Grenadier with Mini Grenade Launcher Last Messages --------------- as-05720 destroyed. The unstable cave ceiling collapses. as-44600 destroyed. A damaged part is partially visible under some rubble. There's a note attached: "Everyone keeps telling us we should avoid high-traffic areas because that's where patrols are more likely to show up, but that doesn't do us much good if we can't spot those areas until they're on top of us... With this we can! Deliver it to Megawrench for repairs then we'll never be afraid of an ambush while sneaking around Materials again, ha." Acquired Prototype Device. Identified Exp. Sensor Array. Imp. Hover Unit destroyed. Grenade Launcher destroyed. Imp. Hover Unit destroyed. Med. Laser destroyed. Exp. Sensor Array destroyed. Sml. Laser destroyed. The unstable cave ceiling collapses. D-53 Grenadier destroyed. Map ----- +----------------------------------------------------+ | ???????????????????????????????????## | | ???????????????????????????????#????## | | ???????????????????????? ???? #?????# | | ???????????????????????? #### #?????? | | ???????????????????????? ##????? | | ???????????????????????? #????? | | ???????????????????????? ##???? | | ???????????????????????## ##??? | | ??????????????????????? # ##?? | | ???????????????????????# ##? | | ????????????####???????# #? | | ???????????## ######### #? | | ??????????## ## | | ?????????## #### # | | ?????????# ##?# #?# | | ?????????? ??# ### % | | ?????????? % ??# | | ?????????? d ##?# ## | | ?????????## #?####### ## | | ????????## #???????## # | | ????????# #????????#### # | | ????????# ##???????????### ## | | ????????# #??????????????####? | | ????????# #??????????????????? | | ????????# #??????????????????? | | ????????# @ #??????????????????? | | ????????# #??????????????????? | | ????????# #??????????????????? | | ????????## ##??????????????????? | | ?????????## #???????????????????? | | ??????????#### #???????????????????? | | ?????????????#####???????????????????? | | ?????????????????????????????????????? | | ?????????????????????????????????????? | | ?????????????????????????????????????? | | ?????????????????????????????????????? | | | | | | | | | | | | | | | | | | | | | | | | | | | | | +----------------------------------------------------+ Best States ------------- Heat Dissipation 25 Energy Generation 14 Energy Capacity 560 Matter Stores 290 Matter Capacity 300 Sight Range 16 Terrain Scan Density 10 Resistance: KI 20 Resistance: TH 20 Resistance: EX 20 Resistance: EM 20 Resistance: I 20 Resistance: S 20 Resistance: P 20 Utility Shielding 33 Evasion (%) 53 Offensive Hacking 10 Item Schematics ----------------- None Robot Schematics ------------------ None Fabricated ------------ Nothing Alien Tech Used ----------------- None Achievements -------------- Quick And Dirty Challenges ------------ None Game ------ Seed MyomerDecoderStreamer Manual? 0 Play Time 00:11:49 Cumulative 40.6 hours Start 2020.01.02 @ 16:12:28 End 2020.01.02 @ 16:23:20 Sessions 1 Manual Loads 0 Difficulty Adventurer Special Mode None Game No. 57 Rogue 49 Adventurer 8 Explorer 0 Win Type - Total 0 Types 0/0/0/0/0/0/0 Lore% 37 Gallery% 45 Achievement% 36 Wizard Run 0 Options --------- ASCII 0 Keyboard 0 Movement Mouse Keybinds 0 Fullscreen 1 Font 18/SmallcapsGlow Map View 76x50 Tactical HUD 0 Map Filters NONE Filters NONE Steam 1 RUN: 4beb0326-2db9-4389-a19b-6db58c9e4608